bitfinex-derivatives/quotes_SOLF0:USTF0_20250109
["timestamp","ask_amount","ask_price","bid_price","bid_amount"]
[1736452309856,2.6885,186.0,185.96,2.689]
[1736452310160,19.9746362,186.08,185.94,1.5522]
[1736452310566,2.6882,186.02,185.98,2.6888]
[1736452310761,2.6882,186.02,185.94,1.5522]
[1736452311056,19.9746362,186.08,185.98,2.6888]
[1736452311261,19.9746362,186.08,185.94,1.5522]
[1736452311664,2.688,186.04,185.94,1.5522]
[1736452312260,2.688,186.04,186.0,2.6884]
[1736452312464,2.6878,186.05,185.95,19.9746362]
[1736452312672,5.76,186.1,185.95,19.9746362]
[1736452312872,19.9746362,186.11,186.03,2.6881]
[1736452313073,2.6875,186.08,185.95,19.9746362]
[1736452313373,5.76,186.13,186.02,2.6882]
[1736452313571,2.6875,186.08,185.98,19.9746362]
[1736452313770,2.6875,186.08,185.99,3.199]
[1736452313968,2.6875,186.08,186.04,2.6878]
[1736452314274,2.6876,186.07,185.99,3.199]
[1736452315069,2.6876,186.07,186.01,2.6883]
[1736452315268,2.6876,186.07,185.99,3.199]
[1736452315465,146.7270422,186.3,185.99,3.199]
[1736452315664,0.82901522,186.24,186.04,19.9746362]
[1736452315967,19.9746362,186.19,186.04,19.9746362]
[1736452316166,19.9746362,186.19,186.01,25.7346362]
[1736452316470,19.9746362,186.11,185.99,3.199]
[1736452316662,19.9746362,186.05,185.94,1.5522]
[1736452316867,19.9746362,186.05,185.97,2.6889]
[1736452317273,19.9746362,186.05,185.92,29.79565202]
[1736452317473,19.9746362,186.05,185.9,62.75250407]
[1736452317474,19.9746362,186.02,185.9,3.1612]
[1736452317769,2.6893,185.95,185.9,3.1612]
[1736452317975,2.6893,185.95,185.86,1.5729]
[1736452318176,19.9746362,185.99,185.86,1.5729]
[1736452318374,19.9746362,185.99,185.85,3.1603]
[1736452319071,2.6897,185.93,185.85,3.1603]
[1736452319273,19.9746362,185.99,185.85,3.1603]
[1736452319773,25.7946362,186.02,185.85,23.1349362]
[1736452321174,2.689,185.97,185.9,2.69]
[1736452321376,19.9746362,185.99,185.85,23.1349362]
[1736452321671,19.9746362,185.99,185.85,3.1603]
[1736452321880,2.6894,185.94,185.88,2.6901]
[1736452322081,19.9746362,185.99,185.85,3.1603]
[1736452322277,19.9746362,185.93,185.81,1.5729]
[1736452322980,2.6901,185.89,185.81,1.5729]
[1736452323781,5.78,185.94,185.82,19.9746362]
[1736452324182,5.78,185.94,185.85,2.6907]
[1736452324380,5.78,185.94,185.81,1.5729]
[1736452324381,19.9746362,185.93,185.81,1.5729]
[1736452324678,19.9746362,185.93,185.83,2.6908]
[1736452324878,2.6902,185.89,185.81,1.5729]
[1736452325380,2.6902,185.89,185.84,2.6907]
[1736452327578,19.9746362,185.9,185.78,1.4866]
[1736452328176,19.9746362,185.9,185.81,2.6912]
[1736452328881,19.9746362,185.9,185.77,3.0116]
[1736452329784,2.6905,185.87,185.79,2.6916]
[1736452329984,19.9746362,185.9,185.77,3.0116]
[1736452330683,19.9746362,185.93,185.77,3.0116]
[1736452330879,19.9746362,185.93,185.79,19.9746362]
[1736452331085,2.6903,185.88,185.79,19.9746362]
[1736452331287,19.9746362,185.93,185.79,19.9746362]
[1736452331682,2.6904,185.88,185.83,2.6908]
[1736452331988,19.9746362,185.93,185.83,2.6908]
[1736452332490,2.6903,185.88,185.83,2.6908]
[1736452333387,2.6902,185.89,185.85,2.6907]
[1736452334785,2.69,185.9,185.86,2.6905]
[1736452335583,2.6897,185.93,185.88,2.6901]
[1736452335783,19.9746362,185.96,185.82,19.9746362]
[1736452336290,19.9746362,185.96,185.78,7.3239]
[1736452336291,19.9746362,185.93,185.78,1.5839]
[1736452336486,19.9746362,185.9,185.78,1.5839]
[1736452336687,2.6904,185.87,185.83,2.691]
[1736452336989,19.9746362,185.9,185.78,1.5839]
[1736452337185,2.69,185.91,185.87,2.6903]
[1736452337390,19.9746362,185.94,185.87,2.6903]
[1736452337591,19.9746362,185.94,185.79,19.9746362]
[1736452337792,2.6898,185.92,185.79,19.9746362]
[1736452338288,2.6901,185.89,185.83,2.6909]
[1736452338491,19.9746362,185.91,185.78,1.5839]
[1736452339490,19.9746362,185.94,185.78,1.5839]
[1736452339691,19.9746362,185.94,185.79,19.9746362]
[1736452339891,5.72,185.95,185.79,19.9746362]
[1736452340287,19.9746362,185.94,185.79,19.9746362]
[1736452341190,2.6899,185.91,185.87,2.6903]
[1736452341594,5.3768,186.02,185.82,25.6746362]
[1736452341892,19.9746362,185.96,185.79,19.9746362]
[1736452342193,19.9746362,185.93,185.79,19.9746362]
[1736452342392,19.9746362,185.93,185.85,2.6906]
[1736452342393,2.6902,185.89,185.85,2.6906]
[1736452342894,8.3898,185.92,185.88,2.6902]
[1736452343392,2.6896,185.93,185.89,2.6901]
[1736452343589,19.9746362,185.99,185.82,19.9746362]
[1736452343893,19.9746362,185.99,185.85,19.9746362]
[1736452344093,2.6889,185.98,185.95,2.6892]
[1736452344295,2.6889,185.98,185.86,4.8704]
[1736452344693,2.6888,185.98,185.95,2.6891]
[1736452344889,5.7,186.01,185.86,4.8704]
[1736452345286,2.6887,185.99,185.96,2.689]
[1736452345692,5.7,186.01,185.96,2.689]
[1736452345893,5.7,186.01,185.86,4.8704]
[1736452346293,19.9746362,185.96,185.89,2.69]
[1736452346488,2.6895,185.94,185.86,4.8704]
[1736452346688,19.9746362,185.96,185.86,4.8704]
[1736452346897,19.9746362,185.99,185.86,4.8704]
[1736452347087,2.6889,185.98,185.86,4.8704]
[1736452347294,19.9746362,185.99,185.92,2.6896]
[1736452347597,19.9746362,185.99,185.86,4.8704]
[1736452347798,25.6546362,186.02,185.86,4.8704]
[1736452348094,25.6546362,186.02,185.96,2.6891]
[1736452348095,2.6885,186.01,185.96,2.6891]
[1736452348302,25.6546362,186.02,185.88,19.9746362]
[1736452348898,19.9746362,186.02,185.88,19.9746362]
[1736452349097,21.5032,186.14,185.88,19.9746362]
[1736452349298,19.9746362,186.05,185.91,19.9746362]
[1736452350195,19.9746362,186.05,185.89,5.3802]
[1736452350391,19.9746362,186.02,185.88,19.9746362]
[1736452350704,19.9746362,186.02,185.86,4.8704]
[1736452351099,2.6887,185.99,185.95,2.6891]
[1736452351297,19.9746362,186.02,185.86,4.8704]
[1736452351800,2.6886,186.0,185.92,2.6897]
[1736452351997,19.9746362,186.02,185.86,4.8704]
[1736452352593,5.7,186.03,185.88,19.9746362]
[1736452353401,5.7,186.03,186.01,2.6884]
[1736452353706,2.688,186.04,186.01,2.6884]
[1736452353901,2.6878,186.05,185.91,19.9746362]
[1736452354098,19.9746362,186.08,185.91,19.9746362]
[1736452354299,19.9746362,186.05,185.91,19.9746362]
[1736452354700,2.688,186.04,186.0,2.6884]
[1736452355206,5.68,186.09,186.01,2.6884]
[1736452355207,19.9746362,186.08,186.01,2.6884]
[1736452355412,2.6878,186.05,186.01,2.6884]
[1736452355612,19.9746362,186.08,185.93,5.68]
[1736452355903,19.9746362,186.12,185.94,24.5474362]
[1736452356099,19.9746362,186.12,185.94,4.5728]
[1736452356303,2.6886,186.0,185.96,2.6891]
[1736452356509,19.9746362,186.12,185.85,29.79565202]
[1736452356510,19.9746362,185.99,185.89,1.4873]
[1736452356802,19.9746362,185.96,185.86,3.0072]
[1736452357406,22.6643362,185.93,185.88,2.6902]
[1736452357808,19.9746362,185.93,185.88,2.6902]
[1736452358006,22.6642362,185.93,185.88,2.6902]
[1736452358206,19.9746362,185.93,185.86,2.6905]
[1736452358403,19.9746362,185.93,185.82,1.4873]
[1736452359006,19.9746362,185.96,185.82,1.4873]
[1736452359205,19.9746362,185.96,185.91,2.6897]
[1736452359408,5.68,185.98,185.82,21.4619362]
[1736452360105,19.9746362,185.96,185.82,1.4873]
[1736452360908,5.68,185.98,185.82,1.4873]
[1736452360909,19.9746362,185.93,185.82,1.4873]
[1736452361215,2.6897,185.92,185.86,2.6905]
[1736452361711,22.6641362,185.93,185.82,1.4873]
[1736452361912,19.9746362,185.96,185.82,1.4873]
[1736452362704,19.9746362,185.96,185.82,21.4619362]
[1736452363104,19.9746362,185.96,185.86,2.6905]
[1736452363305,19.9746362,185.96,185.82,21.4619362]
[1736452363714,19.9746362,185.99,185.82,21.4619362]
[1736452364010,19.9746362,185.99,185.85,19.9746362]
[1736452364215,19.9746362,185.99,185.89,2.6901]
[1736452364409,19.9746362,185.99,185.82,21.4619362]
[1736452364911,19.9746362,185.99,185.93,2.6895]
[1736452364912,2.6889,185.98,185.93,2.6895]
[1736452365308,19.9746362,185.99,185.91,2.6897]
[1736452365507,19.9746362,185.99,185.82,21.4619362]
[1736452366013,19.9746362,185.99,185.85,19.9746362]
[1736452366216,22.6633362,185.99,185.85,19.9746362]
[1736452366410,19.9746362,185.99,185.93,2.6894]
[1736452366613,19.9746362,185.99,185.85,19.9746362]
[1736452366614,2.6893,185.95,185.82,21.4619362]
[1736452366910,19.9746362,185.99,185.9,2.6899]
[1736452367310,2.6894,185.95,185.9,2.6899]
[1736452367511,2.6894,185.95,185.82,21.4619362]
[1736452367817,2.6894,185.95,185.85,2.6906]
[1736452368009,2.6894,185.94,185.82,21.4619362]
[1736452368210,2.6894,185.94,185.82,1.4873]
[1736452368411,19.9746362,185.96,185.82,1.4873]
[1736452368615,2.6898,185.92,185.82,1.4873]
[1736452368805,19.9746362,185.96,185.87,2.6903]
[1736452369013,19.9746362,185.93,185.81,2.9876]
[1736452369210,5.68,185.92,185.81,2.9876]
[1736452369512,5.68,185.92,185.85,2.6906]
[1736452369813,2.6901,185.9,185.85,2.6906]
[1736452370014,2.6901,185.9,185.86,2.6905]
[1736452371214,5.68,185.92,185.81,2.9876]
[1736452372519,8.3697,185.92,185.88,2.6902]
[1736452372714,19.9746362,185.96,185.82,19.9746362]
[1736452372911,2.6891,185.96,185.86,2.6904]
[1736452373218,2.6891,185.96,185.82,19.9746362]
[1736452373621,2.6893,185.95,185.91,2.6897]
[1736452374923,2.6894,185.94,185.9,2.6899]
[1736452375216,2.6894,185.94,185.82,19.9746362]
[1736452375417,19.9746362,185.93,185.81,2.9876]
[1736452375720,2.6899,185.91,185.86,2.6904]
[1736452375922,5.66,185.98,185.81,2.9876]
[1736452375923,19.9746362,185.96,185.81,2.9876]
[1736452376117,2.6894,185.94,185.81,2.9876]
[1736452376314,19.9746362,185.96,185.81,2.9876]
[1736452377217,2.6895,185.93,185.89,2.69]
[1736452378027,2.6894,185.94,185.9,2.69]
[1736452378325,5.68,185.97,185.82,19.9746362]
[1736452378720,2.6893,185.95,185.91,2.6898]
[1736452379123,5.68,185.97,185.81,2.9876]
[1736452379329,19.9746362,186.02,185.88,19.9746362]
[1736452379624,19.9746362,186.02,185.89,3.0892]
[1736452381621,2.6887,185.99,185.95,2.6891]
[1736452382428,19.9746362,186.02,185.89,3.0892]
[1736452382624,5.66,186.04,185.89,3.0892]
[1736452382625,19.9746362,186.05,185.89,3.0892]
[1736452383021,83.92,186.07,185.91,19.9746362]
[1736452383220,19.9746362,186.12,185.89,3.0892]
[1736452383221,25.6346362,186.12,185.94,19.9746362]
[1736452383423,25.6346362,186.12,185.95,1.5713]
[1736452383626,19.9746362,186.12,185.95,1.5713]
[1736452383831,2.6873,186.09,186.05,2.6878]
[1736452384027,19.9746362,186.12,185.95,1.5713]
[1736452384231,19.9746362,186.12,185.97,19.9746362]
[1736452384432,19.9746362,186.15,185.98,3.0757]
[1736452384732,19.9746362,186.18,186.0,19.9746362]
[1736452384932,19.9746362,186.18,186.13,2.6866]
[1736452385133,83.94,186.19,186.03,19.9746362]
[1736452385341,19.9746362,186.21,186.06,19.9746362]
[1736452385630,19.9746362,186.21,186.07,1.6408]
[1736452385831,19.9746362,186.21,186.07,3.1686]
[1736452386633,5.66,186.22,186.07,3.1686]
[1736452386834,19.9746362,186.27,186.07,3.1686]
[1736452387139,19.9746362,186.22,186.07,3.1686]
[1736452387932,19.9746362,186.25,186.09,19.9746362]
[1736452388236,19.9746362,186.25,186.1,5.98]
[1736452388639,2.6852,186.24,186.14,2.6864]
[1736452388839,19.9746362,186.25,186.1,5.98]
[1736452389732,19.9746362,186.25,186.2,2.6856]
[1736452389936,19.9746362,186.25,186.1,5.98]
[1736452390140,83.9,186.38,186.07,3.1686]
[1736452390141,19.9746362,186.22,186.07,3.1686]
[1736452390434,2.686,186.18,186.11,2.6868]
[1736452390638,19.9746362,186.19,186.07,3.1686]
[1736452390839,5.98,186.2,186.07,3.1686]
[1736452391236,19.9746362,186.3,186.09,19.9746362]
[1736452391237,5.98,186.27,186.09,19.9746362]
[1736452391440,19.9746362,186.25,186.18,2.6859]
[1736452391938,19.9746362,186.25,186.09,25.9546362]
[1736452392138,19.9746362,186.25,186.09,19.9746362]
[1736452392339,19.9746362,186.22,186.07,9.1486]
[1736452392529,5.98,186.28,186.09,19.9746362]
[1736452392734,19.9746362,186.25,186.09,19.9746362]
[1736452393139,19.9746362,186.25,186.07,9.1486]
[1736452393140,25.9546362,186.28,186.12,19.9746362]
[1736452393340,19.9746362,186.28,186.13,1.5948]
[1736452393641,22.6587362,186.31,186.15,19.9746362]
[1736452393838,22.6587362,186.31,186.16,3.1059]
[1736452394038,22.6587362,186.31,186.24,2.685]
[1736452394234,87.35635957,186.48,186.25,19.9746362]
[1736452394439,19.9746362,186.42,186.25,23.1654362]
[1736452394637,19.9746362,186.39,186.31,2.684]
[1736452395040,19.9746362,186.39,186.26,1.6345]
[1736452395237,19.9746362,186.39,186.3,2.6842]
[1736452395838,19.9746362,186.39,186.28,2.6844]
[1736452396144,19.9746362,186.3,186.15,19.9746362]
[1736452396345,19.9746362,186.27,186.15,1.5075]
[1736452397233,22.6592362,186.27,186.15,1.5075]
[1736452397438,19.9746362,186.24,186.18,2.6859]
[1736452397741,19.9746362,186.24,186.15,1.5075]
[1736452398035,19.9746362,186.24,186.13,3.2282]
[1736452399942,22.6597362,186.24,186.19,2.6858]
[1736452401142,22.6597362,186.24,186.13,3.2282]
[1736452401143,2.6852,186.23,186.13,3.2282]
[1736452401538,19.9746362,186.24,186.13,3.2282]
[1736452401739,22.6597362,186.24,186.18,2.6858]
[1736452401948,19.9746362,186.24,186.13,3.2282]
[1736452402242,19.9746362,186.24,186.18,2.6858]
[1736452402637,19.9746362,186.24,186.13,1.6345]
[1736452403344,22.6597362,186.24,186.18,2.6858]
[1736452403542,19.9746362,186.24,186.13,1.6345]
[1736452403943,19.9746362,186.24,186.16,2.6862]
[1736452404145,19.9746362,186.24,186.13,1.6345]
[1736452404541,22.6602362,186.21,186.14,2.6865]
[1736452404741,22.6602362,186.21,186.11,1.5254]
[1736452405041,19.9746362,186.21,186.16,2.6861]
[1736452405241,19.9746362,186.21,186.11,1.5254]
[1736452405636,19.9746362,186.21,186.16,2.6862]
[1736452406949,22.6601362,186.21,186.16,2.6862]
[1736452407144,19.9746362,186.21,186.11,1.5254]
[1736452407447,2.6859,186.18,186.08,1.5154]
[1736452407638,19.9746362,186.18,186.1,2.6871]
[1736452407846,19.9746362,186.18,186.02,9.0665]
[1736452408143,2.6866,186.14,186.02,10.6933]
[1736452408445,2.6866,186.14,186.09,2.6871]
[1736452409140,2.6864,186.15,186.1,2.6871]
[1736452410248,19.9746362,186.18,186.02,10.6933]
[1736452410543,19.9746362,186.18,186.04,19.9746362]
[1736452410749,22.6607362,186.18,186.13,2.6866]
[1736452411847,22.6602362,186.21,186.15,2.6864]
[1736452412045,19.9746362,186.21,186.15,2.6864]
[1736452412450,2.6857,186.2,186.16,2.6862]
[1736452412844,19.9746362,186.21,186.05,5.94]
[1736452413250,19.9746362,186.21,186.07,19.9746362]
[1736452414152,19.9746362,186.27,186.1,19.9746362]
[1736452414448,19.9746362,186.27,186.11,4.725]
[1736452414848,19.9746362,186.24,186.11,4.725]
[1736452415146,19.9746362,186.2,186.11,3.1825]
[1736452415351,2.6863,186.16,186.11,2.6869]
[1736452415549,19.9746362,186.17,186.03,1.5444]
[1736452415852,2.6865,186.14,186.09,2.6871]
[1736452416047,22.6611362,186.14,186.09,2.6871]
[1736452416348,19.9746362,186.17,186.03,1.5444]
[1736452416946,2.6862,186.16,186.11,2.6868]
[1736452417154,2.6862,186.16,186.03,1.5444]
[1736452417451,2.6862,186.16,186.11,2.6869]
[1736452417847,2.6864,186.15,186.03,1.5444]
[1736452418053,25.8746362,186.2,186.11,2.6868]
[1736452418253,19.9746362,186.17,186.03,1.5444]
[1736452418745,2.6863,186.16,186.03,1.5444]
[1736452419253,5.9,186.18,186.04,19.9746362]
[1736452419855,8.586,186.18,186.13,2.6866]
[1736452420054,5.9,186.18,186.04,19.9746362]
[1736452420555,2.6858,186.19,186.14,2.6864]
[1736452420754,19.9746362,186.2,186.07,19.9746362]
[1736452420955,25.8346362,186.23,186.07,19.9746362]
[1736452421157,2.6856,186.21,186.17,2.6861]
[1736452422350,25.8346362,186.23,186.07,19.9746362]
[1736452422559,28.5199362,186.23,186.18,2.6858]
[1736452422856,25.8346362,186.23,186.18,2.6858]
[1736452423052,25.8346362,186.23,186.15,2.6862]
[1736452423551,2.6858,186.2,186.16,2.6862]
[1736452424255,2.6855,186.21,186.16,2.6862]
[1736452424454,25.8346362,186.23,186.07,19.9746362]
[1736452424652,19.9746362,186.2,186.05,11.2356]
[1736452425054,2.6861,186.17,186.13,2.6865]
[1736452425253,19.9746362,186.2,186.05,11.2356]
[1736452426157,2.686,186.18,186.05,11.2356]
[1736452427156,2.6862,186.16,186.05,5.86]
[1736452427458,19.9746362,186.2,186.04,19.9746362]
[1736452427657,2.6862,186.16,186.08,2.6873]
[1736452427957,2.6862,186.16,186.04,19.9746362]
[1736452429260,2.6862,186.16,186.12,2.6868]
[1736452429653,19.9746362,186.2,186.04,19.9746362]
[1736452430054,5.86,186.23,186.1,19.9746362]
[1736452430055,19.9746362,186.23,186.1,19.9746362]
[1736452430359,19.9746362,186.26,186.11,4.651]
[1736452430756,22.6595362,186.26,186.21,2.6854]
[1736452430957,5.76,186.3,186.16,19.9746362]
[1736452431355,25.7346362,186.32,186.16,19.9746362]
[1736452431555,5.76,186.32,186.19,19.9746362]
[1736452431754,5.76,186.32,186.2,3.0845]
[1736452431958,5.76,186.32,186.27,2.6845]
[1736452432160,5.76,186.32,186.2,4.5682]
[1736452432161,5.76,186.34,186.2,4.5682]
[1736452432361,19.9746362,186.35,186.2,4.5682]
[1736452432561,2.6838,186.33,186.28,2.6844]
[1736452432757,19.9746362,186.38,186.22,19.9746362]
[1736452432953,28.3977362,186.38,186.22,19.9746362]
[1736452433153,25.7146362,186.38,186.22,19.9746362]
[1736452433558,2.6832,186.37,186.31,2.684]
[1736452433757,25.7146362,186.38,186.22,19.9746362]
[1736452433959,19.9746362,186.35,186.2,4.5682]
[1736452434157,2.6842,186.3,186.24,2.6849]
[1736452434455,19.9746362,186.32,186.2,4.5682]
[1736452434659,2.6841,186.31,186.25,2.6848]
[1736452436053,22.6585362,186.32,186.26,2.6846]
[1736452436760,19.9746362,186.35,186.2,4.5682]
[1736452437760,19.9746362,186.35,186.3,2.6842]
[1736452438155,22.6582362,186.35,186.3,2.6842]
[1736452438562,19.9746362,186.35,186.27,2.6846]
[1736452438865,2.6842,186.3,186.2,4.5682]
[1736452439066,19.9746362,186.32,186.26,2.6847]
[1736452439361,2.6838,186.33,186.2,4.5682]
[1736452439557,2.6838,186.33,186.28,2.6845]
[1736452439755,2.6838,186.33,186.2,4.5682]
[1736452440267,19.9746362,186.35,186.2,4.5682]
[1736452440464,19.9746362,186.32,186.2,4.5682]
[1736452440864,19.9746362,186.35,186.2,4.5682]
[1736452441265,25.6346362,186.38,186.22,19.9746362]
[1736452441464,2.6832,186.37,186.22,19.9746362]
[1736452441665,25.6346362,186.38,186.22,19.9746362]
[1736452441864,2.6841,186.31,186.26,2.6847]
[1736452442166,19.9746362,186.35,186.26,2.6847]
[1736452442466,2.684,186.32,186.27,2.6846]
[1736452442667,5.64,186.34,186.2,4.5682]
[1736452443269,19.9746362,186.32,186.2,3.0845]
[1736452443569,19.9746362,186.26,186.13,1.6147]
[1736452443760,19.9746362,186.26,186.13,4.71]
[1736452443959,19.9746362,186.23,186.13,4.71]
[1736452444166,19.9746362,186.23,186.14,2.6864]
[1736452444366,19.9746362,186.23,186.13,3.0953]
[1736452444667,25.6146362,186.26,186.13,3.0953]
[1736452445270,5.64,186.26,186.13,23.0699362]
[1736452445470,19.9746362,186.29,186.13,28.6899362]
[1736452445660,19.9746362,186.32,186.16,19.9746362]
[1736452445866,19.9746362,186.29,186.13,28.6899362]
[1736452446869,2.685,186.25,186.2,2.6856]
[1736452447064,19.9746362,186.29,186.13,28.6899362]
[1736452448465,2.6845,186.28,186.2,2.6855]
[1736452448665,19.9746362,186.32,186.13,28.6899362]
[1736452449268,19.9746362,186.29,186.13,28.6899362]
[1736452449666,19.9746362,186.26,186.13,3.0953]
[1736452449868,19.9746362,186.26,186.16,2.6862]
[1736452450174,19.9746362,186.23,186.13,3.0953]
[1736452450364,19.9746362,186.2,186.07,7.0791]
[1736452450563,19.9746362,186.2,186.08,3.0554]
[1736452450773,2.6859,186.18,186.12,2.6867]
[1736452451272,22.6598362,186.23,186.14,2.6865]
[1736452451467,19.9746362,186.23,186.08,3.0554]
[1736452451972,19.9746362,186.23,186.1,19.9746362]
[1736452452572,19.9746362,186.23,186.08,3.0554]
[1736452452772,19.9746362,186.2,186.08,3.0554]
[1736452452966,19.9746362,186.2,186.11,2.6869]
[1736452453168,19.9746362,186.2,186.08,3.0554]
[1736452453471,19.9746362,186.2,186.1,2.687]
[1736452453472,2.6863,186.16,186.1,2.687]
[1736452453870,19.9746362,186.2,186.08,3.0554]
[1736452454068,19.9746362,186.23,186.08,3.0554]
[1736452454675,2.686,186.18,186.12,2.6867]
[1736452454982,19.9746362,186.23,186.08,3.0554]
[1736452455175,19.9746362,186.2,186.08,3.0554]
[1736452455373,19.9746362,186.2,186.1,2.6871]
[1736452455574,19.9746362,186.2,186.08,3.0554]
[1736452455970,19.9746362,186.2,186.1,2.687]
[1736452456680,19.9746362,186.2,186.09,2.6872]
[1736452457774,19.9746362,186.2,186.08,3.0554]
[1736452458279,2.6862,186.16,186.12,2.6867]
[1736452458477,19.9746362,186.23,186.08,3.0554]
[1736452458876,10.8893,186.28,186.08,8.5754]
[1736452459178,19.9746362,186.25,186.09,19.9746362]
[1736452459577,2.6857,186.2,186.16,2.6861]
[1736452460077,19.9746362,186.25,186.16,2.6861]
[1736452460376,19.9746362,186.22,186.08,8.5754]
[1736452460781,19.9746362,186.22,186.11,2.6868]
[1736452461281,2.6861,186.17,186.13,2.6866]
[1736452462283,19.9746362,186.22,186.08,8.5754]
[1736452462487,2.6861,186.18,186.08,8.5754]
[1736452462684,19.9746362,186.25,186.09,19.9746362]
[1736452463284,2.6855,186.21,186.09,19.9746362]
[1736452463578,19.9746362,186.3,186.12,19.9746362]
[1736452463783,19.9746362,186.33,186.15,19.9746362]
[1736452463981,19.9746362,186.33,186.18,19.9746362]
[1736452464183,2.6841,186.31,186.26,2.6847]
[1736452465382,2.6839,186.33,186.28,2.6845]
[1736452465585,2.6839,186.33,186.21,19.9746362]
[1736452466484,2.684,186.32,186.26,2.6847]
[1736452466779,5.48,186.32,186.18,19.9746362]
[1736452466974,5.48,186.32,186.16,4.6499]
[1736452466975,2.6852,186.24,186.19,2.6856]
[1736452467174,19.9746362,186.27,186.16,4.6499]
[1736452467383,19.9746362,186.24,186.16,3.0596]
[1736452467579,2.6859,186.18,186.12,32.48235202]
[1736452467782,2.6859,186.18,186.12,29.79565202]
[1736452468485,2.6859,186.18,186.1,4.6371]
[1736452468882,19.9746362,186.21,186.1,4.6371]
[1736452469281,19.9746362,186.18,186.1,3.0936]
[1736452469481,2.6866,186.14,186.1,3.0936]
[1736452469992,19.9746362,186.18,186.05,3.1164]
[1736452470191,2.6868,186.12,186.07,2.6875]
[1736452470385,19.9746362,186.18,186.07,2.6875]
[1736452470781,2.6866,186.14,186.07,2.6875]
[1736452471384,2.6866,186.14,186.09,2.6872]
[1736452471584,2.6866,186.13,186.05,3.1164]
[1736452472185,19.9746362,186.18,186.08,2.6873]
[1736452472186,2.6865,186.14,186.08,2.6873]
[1736452473290,19.9746362,186.18,186.08,2.6873]
[1736452473492,2.6867,186.13,186.08,2.6873]
[1736452475895,19.9746362,186.18,186.05,3.1164]
[1736452476194,2.6864,186.15,186.05,3.1164]
[1736452476494,2.6866,186.14,186.08,2.6872]
[1736452476693,19.9746362,186.18,186.05,3.1164]
[1736452477083,2.6866,186.14,186.09,2.6871]
[1736452478300,2.6866,186.14,186.1,2.6871]
[1736452478795,2.6862,186.16,186.05,3.1164]
[1736452479005,2.6862,186.16,186.06,19.9746362]
[1736452479196,19.9746362,186.24,186.09,19.9746362]
[1736452479495,2.6855,186.21,186.09,19.9746362]
[1736452479995,2.6855,186.22,186.13,2.6865]
[1736452480198,19.9746362,186.27,186.09,19.9746362]
[1736452480397,5.42,186.26,186.09,19.9746362]
[1736452480699,2.6859,186.19,186.09,19.9746362]
[1736452481097,2.6859,186.19,186.14,2.6865]
[1736452481396,19.9746362,186.18,186.05,3.1164]
[1736452481601,19.9746362,186.18,186.09,2.6872]
[1736452482306,19.9746362,186.18,186.05,3.1164]
[1736452482895,19.9746362,186.15,186.05,3.1164]
[1736452484203,2.6868,186.12,186.06,2.6876]
[1736452484501,5.42,186.17,186.06,2.6876]
[1736452484699,19.9746362,186.18,186.06,2.6876]
[1736452484901,19.9746362,186.28,186.12,19.9746362]
[1736452485299,19.9746362,186.28,186.13,4.6938]
[1736452485499,19.9746362,186.31,186.19,2.6858]
[1736452485702,19.9746362,186.28,186.16,5.48]
[1736452485902,2.6859,186.18,186.14,2.6865]
[1736452486200,19.9746362,186.3,186.13,3.1229]
[1736452486201,19.9746362,186.25,186.13,3.1229]
[1736452486396,19.9746362,186.25,186.1,5.48]
[1736452486592,2.6863,186.16,186.12,2.6867]
[1736452486794,19.9746362,186.22,186.12,2.6867]
[1736452487197,2.6861,186.17,186.13,2.6866]
[1736452487596,19.9746362,186.14,186.05,4.6938]
[1736452487792,19.9746362,186.14,186.01,5.74819149]
[1736452487793,2.6875,186.08,186.04,2.6879]
[1736452488498,5.64,186.16,185.99,12.215313]
[1736452488702,19.9746362,186.2,186.04,19.9746362]
[1736452489189,2.6865,186.15,186.1,2.6869]
[1736452490003,2.6862,186.16,186.04,19.9746362]
[1736452490904,2.6864,186.15,186.1,2.687]
[1736452491404,2.6865,186.14,186.1,2.687]
[1736452492007,2.6857,186.2,186.15,2.6863]